bitfinex-derivatives/quotes_SOLF0:USTF0_20250101
["timestamp","ask_amount","ask_price","bid_price","bid_amount"]
[1735734461437,2.6148,191.59,191.54,2.6155]
[1735734462836,2.6148,191.59,191.52,8.40900814]
[1735734463043,2.6148,191.59,191.55,2.6153]
[1735734463642,11.42900814,191.6,191.52,8.40900814]
[1735734463945,2.6149,191.58,191.54,2.6154]
[1735734464740,3.02,191.6,191.54,8.40900814]
[1735734464936,62.60058636,191.66,191.54,8.40900814]
[1735734465140,8.40900814,191.65,191.58,8.40900814]
[1735734465945,8.40900814,191.63,191.56,8.40900814]
[1735734466844,2.6145,191.62,191.58,2.6149]
[1735734467338,8.40900814,191.65,191.58,8.40900814]
[1735734468538,2.6141,191.64,191.59,2.6147]
[1735734470746,2.6145,191.62,191.56,8.40900814]
[1735734471645,2.6145,191.62,191.57,2.615]
[1735734473647,8.40900814,191.63,191.57,2.615]
[1735734473841,2.6147,191.6,191.55,2.6152]
[1735734474347,2.6147,191.6,191.54,8.40900814]
[1735734474945,2.6149,191.59,191.51,3.0]
[1735734475149,2.6149,191.59,191.54,8.40900814]
[1735734476449,2.6147,191.6,191.56,2.6151]
[1735734476838,2.6147,191.6,191.54,8.40900814]
[1735734477045,2.6148,191.59,191.55,2.6153]
[1735734477347,2.6148,191.59,191.55,11.02430814]
[1735734478449,2.6146,191.61,191.55,8.40900814]
[1735734478653,2.6146,191.61,191.57,8.40900814]
[1735734478943,2.6144,191.62,191.58,2.6149]
[1735734479551,11.40900814,191.65,191.57,8.40900814]
[1735734479747,2.6145,191.61,191.57,11.02400814]
[1735734482648,2.6145,191.61,191.57,2.615]
[1735734482953,2.6148,191.59,191.55,11.02420814]
[1735734483156,11.40900814,191.6,191.52,8.40900814]
[1735734483452,2.6151,191.57,191.53,2.6155]
[1735734484453,2.6149,191.58,191.53,2.6155]
[1735734487056,2.6149,191.58,191.54,2.6155]
[1735734487558,2.6149,191.58,191.53,2.6156]
[1735734488055,2.6149,191.58,191.52,8.40900814]
[1735734488259,2.6148,191.59,191.55,2.6153]
[1735734488459,3.0,191.6,191.54,8.40900814]
[1735734489453,5.6147,191.6,191.56,11.02420814]
[1735734494361,3.0,191.6,191.58,2.6149]
[1735734495064,3.0,191.6,191.56,8.40900814]
[1735734496566,5.6147,191.6,191.56,11.02420814]
[1735734498261,3.0,191.6,191.57,2.615]
[1735734499666,2.6145,191.61,191.57,2.615]
[1735734500563,2.6145,191.61,191.56,8.40900814]
[1735734500763,2.6145,191.61,191.56,11.02420814]
[1735734502871,3.0,191.63,191.56,8.40900814]
[1735734503072,8.40900814,191.62,191.55,2.6153]
[1735734503368,8.40900814,191.62,191.54,8.40900814]
[1735734503970,57.95988636,191.64,191.6,8.40900814]
[1735734504367,57.95988636,191.64,191.62,8.40900814]
[1735734504569,57.95988636,191.64,191.62,11.02330814]
[1735734505165,57.95988636,191.64,191.62,8.40900814]
[1735734505374,2.6139,191.66,191.62,8.40900814]
[1735734507372,2.6136,191.68,191.63,2.6142]
[1735734508169,2.6136,191.68,191.64,8.40900814]
[1735734508869,2.6136,191.68,191.64,11.02310814]
[1735734509880,3.0,191.71,191.66,11.02280814]
[1735734510284,3.0,191.71,191.66,8.40900814]
[1735734510579,2.6132,191.71,191.67,2.6136]
[1735734510780,9.9921915,191.73,191.67,2.6136]
[1735734510982,2.613,191.72,191.68,8.40900814]
[1735734512580,2.6129,191.73,191.68,11.02250814]
[1735734513772,2.6128,191.74,191.7,2.6133]
[1735734514171,2.6128,191.74,191.7,11.02230814]
[1735734514672,2.6128,191.74,191.7,8.40900814]
[1735734515577,2.6126,191.75,191.7,11.02220814]
[1735734516277,2.6124,191.77,191.7,8.40900814]
[1735734516482,11.40900814,191.78,191.7,8.40900814]
[1735734517685,2.6125,191.76,191.71,2.6131]
[1735734518381,8.40900814,191.76,191.63,4.5122]
[1735734518684,2.98,191.78,191.65,8.40900814]
[1735734518685,8.40900814,191.72,191.65,8.40900814]
[1735734518886,8.40900814,191.73,191.67,8.40900814]
[1735734519279,1.6276,191.75,191.67,8.40900814]
[1735734519280,10.03660814,191.75,191.67,8.40900814]
[1735734519681,12.64930814,191.75,191.7,2.6133]
[1735734520082,8.40900814,191.73,191.64,2.98]
[1735734520281,8.40900814,191.73,191.66,8.40900814]
[1735734520483,2.613,191.72,191.67,2.6136]
[1735734522888,11.02190814,191.73,191.68,11.02250814]
[1735734523083,2.98,191.78,191.68,8.40900814]
[1735734523287,8.40900814,191.76,191.68,8.40900814]
[1735734524082,2.6127,191.75,191.7,2.6132]
[1735734524889,11.02180814,191.74,191.69,2.6134]
[1735734526391,11.02180814,191.74,191.7,2.6133]
[1735734527891,11.02180814,191.74,191.69,2.6134]
[1735734528490,8.40900814,191.74,191.63,54.27386782]
[1735734528693,8.40900814,191.72,191.67,2.6136]
[1735734528987,8.40900814,191.72,191.65,8.40900814]
[1735734529886,11.02240814,191.7,191.65,2.614]
[1735734530085,11.02240814,191.7,191.65,8.40900814]
[1735734530283,2.98,191.73,191.65,8.40900814]
[1735734530483,14.00200814,191.73,191.68,2.6134]
[1735734530885,2.6122,191.79,191.74,2.6127]
[1735734531086,11.02120814,191.79,191.74,2.6127]
[1735734531293,2.98,191.8,191.73,8.40900814]
[1735734531596,2.98,191.8,191.76,2.6124]
[1735734532091,68.9806945,191.81,191.76,2.6124]
[1735734532289,11.02110814,191.79,191.74,2.6126]
[1735734532685,2.98,191.8,191.71,8.40900814]
[1735734532885,8.40900814,191.77,191.71,8.40900814]
[1735734533293,11.02140814,191.77,191.72,2.6129]
[1735734533793,11.02140814,191.77,191.71,8.40900814]
[1735734534098,8.40900814,191.77,191.73,2.6127]
[1735734534590,2.6115,191.84,191.79,2.612]
[1735734534994,2.6115,191.84,191.78,8.40900814]
[1735734535196,8.40900814,191.82,191.73,6.0726]
[1735734535390,8.40900814,191.8,191.74,8.40900814]
[1735734535795,11.02100814,191.8,191.74,8.40900814]
[1735734536193,2.612,191.8,191.74,8.40900814]
[1735734536394,2.612,191.8,191.74,11.02160814]
[1735734536788,8.40900814,191.79,191.74,2.6126]
[1735734537194,11.02120814,191.79,191.73,2.6129]
[1735734537389,8.40900814,191.77,191.73,2.6129]
[1735734538394,11.02110814,191.79,191.73,2.6129]
[1735734539498,2.6122,191.78,191.73,2.6129]
[1735734539696,2.98,191.82,191.72,8.40900814]
[1735734539896,8.40900814,191.81,191.75,2.6125]
[1735734540499,11.38900814,191.81,191.74,8.40900814]
[1735734540697,8.40900814,191.79,191.68,1.4804]
[1735734540897,8.40900814,191.79,191.71,8.40900814]
[1735734541099,2.6127,191.75,191.71,8.40900814]
[1735734541300,8.40900814,191.75,191.68,8.40900814]
[1735734541702,4.487,191.76,191.62,10.25913648]
[1735734541703,2.613,191.72,191.67,2.6136]
[1735734541994,8.40900814,191.73,191.66,8.40900814]
[1735734543408,2.6132,191.71,191.66,11.02280814]
[1735734544000,2.6132,191.71,191.66,8.40900814]
[1735734544202,2.613,191.72,191.67,2.6137]
[1735734545507,2.6129,191.73,191.68,8.40900814]
[1735734547105,2.613,191.72,191.68,2.6135]
[1735734548707,11.02190814,191.73,191.68,2.6135]
[1735734548903,11.02190814,191.73,191.68,11.02250814]
[1735734549101,2.6129,191.73,191.68,11.02250814]
[1735734550804,57.95988636,191.79,191.7,8.40900814]
[1735734551003,90.05092955,191.8,191.75,11.02160814]
[1735734551004,57.95988636,191.8,191.75,11.02160814]
[1735734551808,10.00660814,191.82,191.75,11.02160814]
[1735734552509,8.40900814,191.8,191.73,8.40900814]
[1735734552711,2.98,191.79,191.73,8.40900814]
[1735734552913,8.40900814,191.78,191.72,8.40900814]
[1735734553112,2.6126,191.75,191.72,8.40900814]
[1735734553709,2.6126,191.75,191.7,8.40900814]
[1735734554407,2.6126,191.75,191.7,11.02230814]
[1735734556214,2.6126,191.75,191.7,2.6133]
[1735734556514,2.98,191.79,191.69,1.5118]
[1735734556713,2.98,191.79,191.73,2.6127]
[1735734557009,57.95988636,191.83,191.69,1.5118]
[1735734557214,2.6118,191.82,191.74,13.09091889]
[1735734557613,57.95988636,191.83,191.74,13.09091889]
[1735734557815,2.98,191.82,191.74,13.09091889]
[1735734558012,2.6119,191.81,191.76,2.6124]
[1735734559314,3.1,191.81,191.73,2.6128]
[1735734560018,3.1,191.81,191.71,14.71031889]
[1735734560216,2.6122,191.79,191.74,2.6127]
[1735734564822,3.1,191.81,191.74,2.6127]
[1735734565121,3.1,191.81,191.72,2.6129]
[1735734565418,3.1,191.81,191.71,14.71031889]
[1735734565624,3.1,191.81,191.74,2.6127]
[1735734565915,3.1,191.81,191.71,14.71031889]
[1735734566113,3.1,191.81,191.72,2.613]
[1735734566114,16.19091889,191.81,191.72,2.613]
[1735734566314,16.19091889,191.81,191.68,13.09091889]
[1735734566516,2.6131,191.72,191.65,13.09091889]
[1735734566717,3.1,191.74,191.65,13.09091889]
[1735734566917,3.1,191.74,191.66,2.6137]
[1735734568419,2.6131,191.71,191.66,2.6137]
[1735734569820,2.6134,191.7,191.65,2.6139]
[1735734570026,2.6134,191.7,191.64,3.1532]
[1735734570417,3.1,191.74,191.61,15.54427993]
[1735734570616,1.5331,191.73,191.62,4.16848379]
[1735734570923,1.5331,191.73,191.61,15.54427993]
[1735734571122,2.6135,191.69,191.64,2.6141]
[1735734572925,2.6134,191.7,191.65,2.6139]
[1735734573235,1.5331,191.73,191.64,13.09091889]
[1735734574427,2.6132,191.71,191.66,2.6138]
[1735734578128,13.09091889,191.67,191.58,2.6149]
[1735734578329,8.39002541,191.64,191.57,11.37462541]
[1735734578729,11.00422541,191.64,191.59,2.6148]
[1735734579134,8.39002541,191.64,191.59,2.6148]
[1735734580231,2.6141,191.64,191.59,2.6148]
[1735734581230,3.1,191.66,191.54,13.10850255]
[1735734581526,13.10850255,191.64,191.56,2.6151]
[1735734581922,13.10850255,191.64,191.54,2.6153]
[1735734582129,13.10850255,191.61,191.54,2.6153]
[1735734582327,3.1,191.6,191.54,2.6153]
[1735734582530,5.7148,191.6,191.54,2.6153]
[1735734583631,2.6148,191.59,191.54,2.6153]
[1735734584621,2.6148,191.59,191.49,13.10850255]
[1735734584622,2.6149,191.58,191.53,2.6156]
[1735734589534,2.6152,191.56,191.51,2.6158]
[1735734589733,2.6152,191.56,191.48,3.1451]
[1735734589734,16.16850255,191.55,191.48,3.1451]
[1735734589938,16.16850255,191.55,191.48,1.5623]
[1735734590143,2.6157,191.53,191.47,2.6163]
[1735734590337,2.6157,191.53,191.44,4.14539489]
[1735734590536,2.6157,191.53,191.43,16.16850255]
[1735734590933,2.6157,191.53,191.48,2.6162]
[1735734591137,5.6757,191.53,191.43,13.10850255]
[1735734591936,3.06,191.53,191.49,2.6161]
[1735734593639,5.6757,191.53,191.49,2.6161]
[1735734597145,1.521,191.57,191.43,13.10850255]
[1735734597339,3.06,191.55,191.43,13.10850255]
[1735734597845,3.06,191.55,191.46,2.6165]
[1735734598144,3.06,191.55,191.43,13.10850255]
[1735734600047,5.6753,191.55,191.5,2.6159]
[1735734600248,3.06,191.55,191.43,13.10850255]
[1735734600546,13.10850255,191.54,191.43,13.10850255]
[1735734601049,2.6156,191.53,191.49,2.6161]
[1735734601547,13.10850255,191.54,191.43,13.10850255]
[1735734601747,2.6158,191.52,191.47,2.6163]
[1735734602250,2.6159,191.51,191.47,2.6163]
[1735734602750,2.6159,191.51,191.41,52.26731708]
[1735734602751,2.6162,191.49,191.41,52.26731708]
[1735734603150,3.06,191.5,191.43,2.6168]
[1735734603344,2.6163,191.48,191.41,52.26731708]
[1735734603951,3.06,191.5,191.41,52.26731708]
[1735734605050,13.10850255,191.54,191.43,13.10850255]
[1735734605254,3.06,191.54,191.43,16.16850255]
[1735734605551,3.06,191.55,191.43,16.16850255]
[1735734605847,14.62950255,191.57,191.51,2.6158]
[1735734606048,2.6153,191.55,191.51,2.6158]
[1735734607749,2.6155,191.54,191.49,2.6161]
[1735734607951,13.10850255,191.54,191.49,2.6161]
[1735734608256,13.10850255,191.54,191.43,13.10850255]
[1735734608453,13.10850255,191.54,191.42,3.06]
[1735734608454,2.6158,191.52,191.42,3.06]
[1735734608654,3.06,191.51,191.42,3.06]
[1735734609155,3.06,191.51,191.47,2.6163]
[1735734609452,3.06,191.51,191.43,13.10850255]
[1735734609756,3.06,191.51,191.5,2.616]
[1735734610454,3.06,191.51,191.43,13.10850255]
[1735734610756,3.06,191.51,191.49,2.6161]
[1735734611145,3.06,191.51,191.5,2.616]
[1735734611756,1.521,191.57,191.42,3.06]
[1735734612051,3.06,191.57,191.46,13.10850255]
[1735734612356,3.06,191.58,191.54,2.6154]
[1735734615749,13.10850255,191.59,191.47,7.7524]
[1735734615953,16.16850255,191.59,191.47,7.7524]
[1735734616157,13.10850255,191.59,191.47,7.7524]
[1735734616358,3.06,191.6,191.49,13.10850255]
[1735734616657,3.06,191.6,191.57,2.615]
[1735734619060,3.06,191.6,191.56,2.6152]
[1735734619853,3.06,191.6,191.49,13.10850255]
[1735734619854,3.2084,191.65,191.49,13.10850255]
[1735734620053,3.2084,191.65,191.5,4.15616186]
[1735734620054,13.10850255,191.63,191.5,4.15616186]
[1735734620254,13.10850255,191.63,191.49,13.10850255]
[1735734620454,18.82280255,191.63,191.58,2.6148]
[1735734620749,15.72280255,191.63,191.58,2.6148]
[1735734620949,18.82280255,191.63,191.58,2.6148]
[1735734621151,15.72280255,191.63,191.59,2.6147]
[1735734621557,13.10850255,191.63,191.52,16.20850255]
[1735734621755,3.1,191.65,191.53,4.15858547]
[1735734621955,15.72230255,191.66,191.62,2.6144]
[1735734622256,15.72230255,191.66,191.52,16.20850255]
[1735734622257,2.614,191.65,191.54,8.85803979]
[1735734622457,2.614,191.65,191.54,4.6963]
[1735734622657,2.614,191.65,191.6,2.6145]
[1735734623661,2.614,191.65,191.61,2.6145]
[1735734626364,5.7138,191.67,191.63,2.6142]
[1735734626854,3.1,191.67,191.55,13.10850255]
[1735734627055,2.6138,191.66,191.62,2.6144]
[1735734627450,3.1,191.67,191.63,2.6141]
[1735734628459,2.6137,191.68,191.63,2.6141]
[1735734628658,5.7137,191.68,191.63,2.6141]
[1735734630165,2.6137,191.68,191.63,2.6141]
[1735734631061,13.10850255,191.69,191.58,13.10850255]
[1735734631255,4.1435,191.7,191.58,13.10850255]
[1735734631256,14.58430255,191.72,191.58,13.10850255]
[1735734631453,3.1,191.71,191.67,2.6136]
[1735734631652,5.7132,191.71,191.67,2.6136]
[1735734632266,2.6132,191.71,191.67,2.6136]
[1735734633762,14.71350255,191.75,191.62,6.222]
[1735734634065,14.71350255,191.75,191.71,2.6131]
[1735734634258,14.71350255,191.75,191.64,13.10850255]
[1735734634459,1.605,191.75,191.64,13.10850255]
[1735734634966,2.6127,191.74,191.7,2.6133]
[1735734635169,1.605,191.75,191.64,13.10850255]
[1735734635367,4.6442,191.8,191.67,13.10850255]
[1735734635567,2.6126,191.76,191.68,3.1]
[1735734635764,13.10850255,191.79,191.68,3.1]
[1735734635964,13.10850255,191.76,191.68,3.1]
[1735734636363,8.38053038,191.74,191.69,2.6133]
[1735734637465,2.6129,191.73,191.69,2.6133]
[1735734637671,8.38053038,191.75,191.7,2.6133]
[1735734638269,8.38053038,191.75,191.64,3.1]
[1735734638270,13.09430997,191.77,191.64,16.19430997]
[1735734638464,13.09430997,191.77,191.64,3.1]
[1735734638662,13.09430997,191.74,191.64,3.1]
[1735734638867,3.1,191.73,191.64,3.1]
[1735734640472,3.1,191.73,191.69,2.6134]
[1735734641266,3.1,191.73,191.7,2.6132]
[1735734641765,3.1,191.73,191.64,16.19430997]
[1735734642869,3.1,191.73,191.7,2.6131]
[1735734645674,3.1,191.73,191.64,16.19430997]
[1735734645873,3.1,191.73,191.71,2.6131]
[1735734646172,3.1,191.73,191.64,16.19430997]
[1735734646373,3.1,191.73,191.7,2.6133]
[1735734647769,3.1,191.73,191.62,7.6945]
[1735734648171,2.6133,191.71,191.67,2.6136]
[1735734657380,2.613,191.73,191.63,13.09430997]
[1735734657582,3.02,191.72,191.63,13.09430997]
[1735734658183,3.02,191.72,191.65,2.6139]
[1735734658381,13.09430997,191.74,191.66,8.38127361]
[1735734658382,5.6327,191.74,191.66,8.38127361]
[1735734658790,5.6327,191.74,191.7,2.6132]
[1735734659798,3.02,191.74,191.71,2.6131]
[1735734659988,11.40127361,191.74,191.71,2.6131]
[1735734660790,11.40127361,191.74,191.66,8.38127361]
[1735734660990,11.40127361,191.74,191.7,2.6133]
[1735734661895,33.81536532,191.83,191.7,8.38127361]
[1735734662094,8.38127361,191.78,191.7,8.38127361]
[1735734662289,3.02,191.8,191.7,8.38127361]
[1735734662496,8.38127361,191.78,191.75,2.6126]
[1735734662887,3.02,191.8,191.7,8.38127361]
[1735734663089,10.99347361,191.78,191.73,2.6128]
[1735734663993,2.6122,191.78,191.7,8.38127361]
[1735734664294,8.38127361,191.78,191.7,8.38127361]
[1735734665595,8.38127361,191.78,191.72,2.613]
[1735734665895,8.38127361,191.78,191.7,8.38127361]
[1735734666292,8.38127361,191.78,191.74,2.6127]
[1735734666687,10.99347361,191.78,191.74,2.6127]
[1735734667697,8.38127361,191.76,191.67,3.02]
[1735734667890,8.38127361,191.74,191.68,8.38127361]
[1735734668495,2.6128,191.74,191.69,2.6133]
[1735734668698,2.6128,191.74,191.68,8.38127361]
[1735734669088,2.6128,191.74,191.7,2.6132]
[1735734669486,2.6132,191.71,191.62,4.5945]
[1735734669694,8.38127361,191.7,191.66,2.6138]
[1735734671898,10.99457361,191.7,191.66,2.6138]
[1735734672200,8.38127361,191.7,191.67,2.6136]
[1735734673906,5.6331,191.72,191.67,2.6136]
[1735734674099,8.38127361,191.71,191.67,2.6136]
[1735734674602,8.38127361,191.71,191.68,2.6136]
[1735734678399,5.6331,191.72,191.68,2.6136]
[1735734678707,8.38127361,191.71,191.68,2.6136]
[1735734678914,8.38127361,191.71,191.67,2.6137]
[1735734678915,10.99447361,191.71,191.67,2.6137]
[1735734679109,3.02,191.72,191.62,3.122]
[1735734679308,1.6263,191.75,191.68,8.38127361]
[1735734679608,3.02,191.77,191.74,2.6127]
[1735734680612,11.40127361,191.77,191.74,2.6127]
[1735734684002,3.0,191.77,191.72,8.38127361]
[1735734685110,3.0,191.77,191.75,2.6125]
[1735734688417,11.38127361,191.77,191.75,2.6125]
[1735734689507,11.38127361,191.77,191.72,2.613]
[1735734689711,8.38127361,191.75,191.72,2.613]
[1735734691010,8.38127361,191.75,191.73,2.6128]
[1735734691217,11.38127361,191.77,191.73,2.6128]
[1735734692817,8.38127361,191.77,191.7,8.38127361]
[1735734693017,11.38127361,191.77,191.7,8.38127361]
[1735734693618,11.38127361,191.77,191.75,2.6125]
[1735734694517,8.38127361,191.77,191.75,2.6125]
[1735734696119,8.38127361,191.77,191.7,8.38127361]
[1735734696319,8.38127361,191.77,191.76,2.6125]
[1735734698822,3.0,191.79,191.76,2.6125]
[1735734699118,8.38127361,191.78,191.76,2.6125]
[1735734699321,3.0,191.79,191.76,2.6125]
[1735734699522,8.38127361,191.78,191.76,2.6125]
[1735734700822,5.6119,191.8,191.76,2.6125]
[1735734701029,8.38127361,191.78,191.76,2.6125]
[1735734703020,8.38127361,191.78,191.77,2.6123]
[1735734703230,8.38127361,191.8,191.72,8.38127361]
[1735734704131,4.0426985,191.81,191.78,2.6121]
[1735734704432,8.38127361,191.8,191.78,2.6121]
[1735734705724,8.38127361,191.8,191.75,2.6125]
[1735734705929,8.38127361,191.8,191.74,8.38127361]
[1735734707627,8.38127361,191.8,191.78,2.6121]
[1735734708030,8.38127361,191.8,191.74,8.38127361]
[1735734708735,8.38127361,191.8,191.77,2.6122]
[1735734709134,8.38127361,191.8,191.74,8.38127361]
[1735734709535,8.38127361,191.8,191.79,2.6121]
[1735734709733,1.0426985,191.81,191.79,2.6121]
[1735734711328,2.6119,191.8,191.71,6.1866]
[1735734711535,1.0426985,191.81,191.76,8.38127361]
[1735734712126,1.4772,191.83,191.76,8.38127361]
[1735734712732,8.38127361,191.83,191.8,2.6119]
[1735734713435,5.6114,191.84,191.8,2.6119]
[1735734713635,13.99267361,191.84,191.8,2.6119]
[1735734715336,11.38127361,191.84,191.76,8.38127361]
[1735734715532,10.99297361,191.82,191.78,2.6121]
[1735734715729,8.38127361,191.82,191.72,1.5802]
[1735734715935,10.99327361,191.8,191.75,2.6126]
[1735734717034,10.99327361,191.8,191.76,2.6124]
[1735734717234,2.612,191.8,191.76,2.6124]
[1735734717938,10.99307361,191.81,191.76,2.6124]
[1735734718843,8.38127361,191.81,191.76,2.6124]
[1735734719044,10.99337361,191.79,191.75,2.6126]
[1735734719239,13.99337361,191.79,191.75,2.6126]
[1735734721447,3.0,191.79,191.73,8.38127361]
[1735734722153,3.0,191.79,191.77,2.6123]
[1735734722548,2.6118,191.81,191.77,2.6123]
[1735734722948,8.38127361,191.8,191.77,2.6123]
[1735734725054,2.6118,191.81,191.77,2.6123]
[1735734726349,3.0,191.82,191.75,8.38127361]
[1735734726552,11.38127361,191.84,191.77,8.38127361]
[1735734728153,11.38127361,191.84,191.8,2.6118]
[1735734728353,8.38127361,191.84,191.77,8.38127361]
[1735734729454,8.38127361,191.84,191.81,2.6117]
[1735734729852,4.2346,191.88,191.79,8.38127361]
[1735734730056,8.38127361,191.87,191.81,8.38127361]
[1735734730759,8.38127361,191.87,191.84,2.6113]
[1735734731549,8.38127361,191.87,191.85,2.6112]
[1735734732755,10.99237361,191.87,191.82,2.6115]
[1735734732955,8.38127361,191.85,191.82,2.6115]
[1735734733951,8.38127361,191.83,191.8,2.6119]
[1735734734156,3.0,191.82,191.76,8.38127361]
[1735734734357,8.38127361,191.81,191.76,8.38127361]
[1735734734559,8.38127361,191.81,191.73,3.0]
[1735734734560,8.38127361,191.81,191.78,2.6122]
[1735734737758,8.38127361,191.81,191.77,2.6123]
[1735734738461,8.38127361,191.79,191.72,8.38127361]
[1735734739060,10.99337361,191.79,191.75,2.6126]
[1735734739458,8.38127361,191.79,191.75,2.6126]
[1735734739657,8.38127361,191.79,191.74,2.6127]
[1735734739856,8.38127361,191.79,191.72,8.38127361]
[1735734741252,4.2231,191.81,191.77,2.6123]
[1735734741457,8.38127361,191.79,191.77,2.6123]
[1735734743263,8.38127361,191.79,191.76,2.6124]
[1735734744865,8.38127361,191.77,191.7,58.12370777]
[1735734745061,11.38127361,191.77,191.7,49.74243416]
[1735734745262,8.38127361,191.75,191.7,49.74243416]
[1735734745562,10.99387361,191.75,191.67,11.57947361]
[1735734746563,10.99387361,191.75,191.71,2.6131]
[1735734748265,8.38127361,191.73,191.69,2.6133]
[1735734749469,3.0,191.72,191.69,2.6133]
[1735734749669,8.38127361,191.71,191.65,8.38127361]
[1735734749873,8.38127361,191.71,191.67,2.6136]
[1735734750772,8.38127361,191.71,191.68,2.6135]
[1735734752067,10.99447361,191.71,191.67,2.6137]
[1735734753475,8.38127361,191.71,191.67,2.6137]
[1735734758981,15.7,191.8,191.7,2.6133]
[1735734759281,8.38127361,191.73,191.7,2.6133]
[1735734759482,11.38127361,191.73,191.7,2.6133]
[1735734760679,13.99417361,191.73,191.68,2.6135]
[1735734761478,11.38127361,191.73,191.63,2.39418616]
[1735734761681,8.38127361,191.71,191.66,2.6137]
[1735734762686,2.6133,191.7,191.66,2.6137]
[1735734762883,8.38127361,191.71,191.67,2.6137]
[1735734764482,10.99447361,191.71,191.67,2.6137]
[1735734766085,3.0,191.71,191.69,2.6134]
[1735734766279,1.04280723,191.79,191.67,8.38127361]
[1735734766481,8.38127361,191.74,191.67,8.38127361]
[1735734766786,3.0,191.73,191.7,2.6132]
[1735734766975,3.0,191.73,191.67,8.38127361]
[1735734767176,2.6132,191.71,191.65,8.38127361]
[1735734767581,2.6133,191.7,191.67,2.6136]
[1735734767787,10.99457361,191.7,191.63,10.77545977]
[1735734768286,10.99457361,191.7,191.66,2.6137]
[1735734768490,2.6133,191.7,191.66,2.6137]
[1735734769177,8.38127361,191.72,191.65,8.38127361]
[1735734769385,10.99437361,191.72,191.68,2.6135]
[1735734772378,8.38127361,191.72,191.68,2.6135]
[1735734772584,2.6131,191.71,191.68,2.6135]
[1735734773087,2.6131,191.71,191.65,8.38127361]
[1735734773291,2.6131,191.71,191.67,2.6137]
[1735734774890,8.38127361,191.7,191.63,10.77545977]
[1735734776092,5.5934,191.69,191.63,10.77545977]
[1735734776386,2.98,191.69,191.63,10.77545977]
[1735734776590,2.98,191.69,191.64,2.614]
[1735734776791,2.98,191.69,191.63,10.77545977]
[1735734777186,8.38127361,191.68,191.61,58.14739586]
[1735734777385,8.38127361,191.66,191.61,49.76612225]
[1735734778498,2.6141,191.65,191.61,52.38062225]
[1735734779995,10.99507361,191.66,191.62,2.6144]
[1735734782199,8.38127361,191.66,191.61,49.76612225]
[1735734782406,2.98,191.69,191.63,8.38127361]
[1735734784404,2.98,191.69,191.66,2.6137]
[1735734784604,11.36127361,191.69,191.63,8.38127361]
[1735734784804,8.38127361,191.67,191.61,58.14739586]
[1735734785108,8.38127361,191.65,191.61,49.76612225]
[1735734785404,2.98,191.64,191.61,49.76612225]
[1735734785705,2.98,191.64,191.61,2.6145]
[1735734787409,2.98,191.64,191.63,2.6142]
[1735734788004,3.0359,191.73,191.63,8.38127361]
[1735734788201,8.38127361,191.73,191.65,8.38127361]
[1735734788407,2.98,191.72,191.65,8.38127361]
[1735734789207,2.98,191.72,191.7,2.6133]
[1735734791509,8.38127361,191.73,191.7,2.6133]
[1735734791704,11.36127361,191.73,191.7,2.6133]
[1735734791911,8.38127361,191.73,191.7,2.6133]
[1735734793809,8.38127361,191.73,191.63,3.1649]
[1735734794110,8.38127361,191.71,191.64,12.55466215]
[1735734794308,8.38127361,191.71,191.64,13.37907324]
[1735734794501,8.38127361,191.71,191.67,2.6136]
[1735734794904,8.38127361,191.73,191.67,2.6136]
[1735734795712,2.6132,191.71,191.67,2.6136]
[1735734797114,10.99427361,191.73,191.68,2.6134]
[1735734799114,2.6131,191.72,191.68,2.6134]
[1735734800117,8.38127361,191.73,191.66,8.38127361]
[1735734800317,10.99417361,191.73,191.68,2.6135]
[1735734802120,2.6129,191.73,191.68,2.6135]
[1735734802315,10.99387361,191.75,191.68,8.38127361]
[1735734803418,10.99387361,191.75,191.71,2.6131]
[1735734803617,8.38127361,191.77,191.7,8.38127361]
[1735734805012,2.6122,191.78,191.7,8.38127361]
[1735734805414,2.6122,191.78,191.73,2.6128]
[1735734806215,2.6124,191.77,191.73,2.6128]